[Event "Early-Titled-Tuesday-Blitz-May-28-2024"]
[Site "Chess.com"]
[Date "2024.05.28"]
[Round "5"]
[White "DumbKing75"]
[Black "DominguezOnYoutube"]
[Result "1/2-1/2"]
[WhiteElo "2679"]
[BlackElo "2986"]
[TimeControl "180+1"]
[EndTime "8:57:16 PDT"]
[Termination "Game drawn by repetition"]

1. e4 {[%clk 0:03:00.9]} 1... c5 {[%clk 0:02:59.6]} 2. Nf3 {[%clk 0:02:59.3]}
2... d6 {[%clk 0:03:00]} 3. d4 {[%clk 0:02:59.3]} 3... cxd4 {[%clk 0:03:00.1]}
4. Qxd4 {[%clk 0:03:00]} 4... Nf6 {[%clk 0:02:59.9]} 5. Nc3 {[%clk 0:02:59.5]}
5... Nc6 {[%clk 0:02:59.4]} 6. Bb5 {[%clk 0:02:59.1]} 6... Bd7 {[%clk
0:02:59.9]} 7. Bxc6 {[%clk 0:02:59]} 7... Bxc6 {[%clk 0:03:00.8]} 8. Bg5 {[%clk
0:02:59.6]} 8... e6 {[%clk 0:03:00.8]} 9. O-O-O {[%clk 0:03:00.1]} 9... Be7
{[%clk 0:03:00.8]} 10. Bxf6 {[%clk 0:03:00.7]} 10... Bxf6 {[%clk 0:03:00]} 11.
Qxd6 {[%clk 0:03:01.1]} 11... Qxd6 {[%clk 0:02:50.7]} 12. Rxd6 {[%clk 0:03:02]}
12... Bxc3 {[%clk 0:02:50.6]} 13. bxc3 {[%clk 0:03:02.9]} 13... Bxe4 {[%clk
0:02:50.7]} 14. Ne5 {[%clk 0:03:03.5]} 14... Rc8 {[%clk 0:02:31.9]} 15. Rd4
{[%clk 0:03:03.1]} 15... Bc6 {[%clk 0:02:15.8]} 16. Nxc6 {[%clk 0:03:02.8]}
16... Rxc6 {[%clk 0:02:14.9]} 17. Rhd1 {[%clk 0:03:03.1]} 17... O-O {[%clk
0:02:09.4]} 18. Rd7 {[%clk 0:03:03.5]} 18... b5 {[%clk 0:01:23.5]} 19. Rxa7
{[%clk 0:02:47]} 19... Rxc3 {[%clk 0:01:22.7]} 20. Rdd7 {[%clk 0:02:34.5]} 20...
Rc5 {[%clk 0:01:19.4]} 21. Rac7 {[%clk 0:02:08.5]} 21... Rf5 {[%clk 0:01:18.6]}
22. f3 {[%clk 0:02:08.8]} 22... h5 {[%clk 0:01:18.2]} 23. Kb2 {[%clk 0:02:02]}
23... Ra8 {[%clk 0:01:11.9]} 24. Ra7 {[%clk 0:01:03.9]} 24... Rc8 {[%clk
0:01:11]} 25. Rac7 {[%clk 0:01:03.4]} 25... Ra8 {[%clk 0:01:09.8]} 26. Ra7
{[%clk 0:01:03.5]} 26... Re8 {[%clk 0:01:09]} 27. a3 {[%clk 0:00:46.1]} 27... h4
{[%clk 0:01:06.3]} 28. h3 {[%clk 0:00:45.5]} 28... Rc8 {[%clk 0:01:00.8]} 29.
Rac7 {[%clk 0:00:29.8]} 29... Ra8 {[%clk 0:01:00.6]} 30. Ra7 {[%clk 0:00:29.9]}
30... Rf8 {[%clk 0:00:59.2]} 31. Rab7 {[%clk 0:00:27.7]} 31... Rg5 {[%clk
0:00:56.3]} 32. Rd2 {[%clk 0:00:22.4]} 32... Rc8 {[%clk 0:00:56.5]} 33. Kb3
{[%clk 0:00:13.2]} 33... Rgc5 {[%clk 0:00:54.1]} 34. Rbd7 {[%clk 0:00:13.7]}
34... Rc3+ {[%clk 0:00:28.8]} 35. Kb2 {[%clk 0:00:13.6]} 35... g5 {[%clk
0:00:25.6]} 36. Rd8+ {[%clk 0:00:12.8]} 36... Kg7 {[%clk 0:00:26.2]} 37. Rxc8
{[%clk 0:00:13.2]} 37... Rxc8 {[%clk 0:00:26.8]} 38. Kb3 {[%clk 0:00:10.6]}
38... Rc5 {[%clk 0:00:17.7]} 39. c3 {[%clk 0:00:08.2]} 39... Kg6 {[%clk
0:00:17.5]} 40. Rd4 {[%clk 0:00:06.2]} 40... Re5 {[%clk 0:00:16.7]} 41. Re4
{[%clk 0:00:03.8]} 41... Rd5 {[%clk 0:00:15.8]} 42. Rd4 {[%clk 0:00:04.2]} 42...
Re5 {[%clk 0:00:09.6]} 43. Re4 {[%clk 0:00:04.3]} 43... Rc5 {[%clk 0:00:09.7]}
44. Kb4 {[%clk 0:00:04.4]} 44... Rc7 {[%clk 0:00:09.2]} 45. Rd4 {[%clk
0:00:04.5]} 45... Kf5 {[%clk 0:00:08.8]} 46. Re4 {[%clk 0:00:04.2]} 46... e5
{[%clk 0:00:08.4]} 47. c4 {[%clk 0:00:04.4]} 47... bxc4 {[%clk 0:00:08]} 48.
Rxc4 {[%clk 0:00:05.3]} 48... Rb7+ {[%clk 0:00:08.5]} 49. Kc3 {[%clk 0:00:05.9]}
49... Ra7 {[%clk 0:00:08.9]} 50. a4 {[%clk 0:00:06.2]} 50... Ke6 {[%clk
0:00:08.5]} 51. Rb4 {[%clk 0:00:06.5]} 51... f5 {[%clk 0:00:07.2]} 52. Kd3
{[%clk 0:00:06.9]} 52... Kd5 {[%clk 0:00:05.6]} 53. Rb5+ {[%clk 0:00:07.1]}
53... Kd6 {[%clk 0:00:06]} 54. a5 {[%clk 0:00:07.7]} 54... Ke6 {[%clk
0:00:04.9]} 55. Rb6+ {[%clk 0:00:07.9]} 55... Kd5 {[%clk 0:00:05.3]} 56. Rb5+
{[%clk 0:00:08.8]} 56... Ke6 {[%clk 0:00:05.1]} 57. Rb6+ {[%clk 0:00:09.4]}
57... Kd5 {[%clk 0:00:05.3]} 58. Rb5+ {[%clk 0:00:10.3]} 58... Ke6 {[%clk
0:00:05.4]} 1/2-1/2

[Event "Early-Titled-Tuesday-Blitz-May-28-2024"]
[Site "Chess.com"]
[Date "2024.05.28"]
[Round "5"]
[White "MVM2008"]
[Black "Makswolf200817"]
[Result "1-0"]
[WhiteElo "2503"]
[BlackElo "2737"]
[TimeControl "180+1"]
[EndTime "8:57:16 PDT"]
[Termination "MVM2008 won on time"]

1. e4 {[%clk 0:03:00.9]} 1... c5 {[%clk 0:02:55.9]} 2. Nf3 {[%clk 0:02:59.7]}
2... d6 {[%clk 0:02:55.9]} 3. d4 {[%clk 0:02:59.2]} 3... cxd4 {[%clk 0:02:56.6]}
4. Nxd4 {[%clk 0:03:00.1]} 4... Nf6 {[%clk 0:02:57.1]} 5. Nc3 {[%clk 0:03:01]}
5... a6 {[%clk 0:02:57.8]} 6. Bc4 {[%clk 0:03:01.2]} 6... e6 {[%clk 0:02:56.9]}
7. Bb3 {[%clk 0:03:01.6]} 7... b5 {[%clk 0:02:57.5]} 8. O-O {[%clk 0:03:00]}
8... Be7 {[%clk 0:02:57.9]} 9. f4 {[%clk 0:02:58.8]} 9... Bb7 {[%clk 0:02:39.4]}
10. Nxe6 {[%clk 0:02:26.1]} 10... fxe6 {[%clk 0:02:35.8]} 11. Bxe6 {[%clk
0:02:27]} 11... Qb6+ {[%clk 0:02:12.6]} 12. Kh1 {[%clk 0:02:19.7]} 12... Nbd7
{[%clk 0:02:12.2]} 13. Qe2 {[%clk 0:02:03.4]} 13... Nc5 {[%clk 0:01:33.3]} 14.
Be3 {[%clk 0:01:48.2]} 14... b4 {[%clk 0:01:31]} 15. e5 {[%clk 0:01:10.8]} 15...
dxe5 {[%clk 0:01:23]} 16. fxe5 {[%clk 0:01:03.5]} 16... Qxe6 {[%clk 0:00:25.1]}
17. exf6 {[%clk 0:01:00.6]} 17... O-O-O {[%clk 0:00:23.8]} 18. fxe7 {[%clk
0:00:52.4]} 18... Qxe7 {[%clk 0:00:24.2]} 19. Qg4+ {[%clk 0:00:36.8]} 19... Nd7
{[%clk 0:00:18.8]} 20. Bg5 {[%clk 0:00:31.7]} 20... Qc5 {[%clk 0:00:13.3]} 21.
Na4 {[%clk 0:00:16.8]} 21... Qc6 {[%clk 0:00:13.8]} 22. Bxd8 {[%clk 0:00:14.9]}
22... Rxd8 {[%clk 0:00:14.7]} 23. b3 {[%clk 0:00:13.1]} 23... Kb8 {[%clk
0:00:15.4]} 24. Rad1 {[%clk 0:00:12.4]} 24... Ka7 {[%clk 0:00:14.9]} 25. Qd4+
{[%clk 0:00:12]} 25... Ka8 {[%clk 0:00:15]} 26. Rg1 {[%clk 0:00:11.8]} 26... Kb8
{[%clk 0:00:13.1]} 27. Qxb4 {[%clk 0:00:10.4]} 27... Re8 {[%clk 0:00:08.1]} 28.
Qf4+ {[%clk 0:00:09.3]} 28... Ka7 {[%clk 0:00:07.1]} 29. Qd4+ {[%clk 0:00:09.2]}
29... Nb6 {[%clk 0:00:07.1]} 30. Nxb6 {[%clk 0:00:08.1]} 30... Qxb6 {[%clk
0:00:06.4]} 31. Qxb6+ {[%clk 0:00:08.5]} 31... Kxb6 {[%clk 0:00:07.3]} 32. Rge1
{[%clk 0:00:08.8]} 32... Rc8 {[%clk 0:00:06.9]} 33. c4 {[%clk 0:00:08.4]} 33...
Rf8 {[%clk 0:00:06.7]} 34. Kg1 {[%clk 0:00:08.3]} 34... Kc5 {[%clk 0:00:06.4]}
35. Re5+ {[%clk 0:00:08.1]} 35... Kb4 {[%clk 0:00:06.9]} 36. Re7 {[%clk
0:00:06.9]} 36... Bc6 {[%clk 0:00:06.5]} 37. Rxg7 {[%clk 0:00:06.8]} 37... Ka3
{[%clk 0:00:06.8]} 38. Rxh7 {[%clk 0:00:06.6]} 38... Rg8 {[%clk 0:00:07.5]} 39.
g3 {[%clk 0:00:06.4]} 39... Kxa2 {[%clk 0:00:08.2]} 40. Rh6 {[%clk 0:00:06.7]}
40... Rc8 {[%clk 0:00:07.8]} 41. Rdd6 {[%clk 0:00:05.9]} 41... Bb7 {[%clk
0:00:08.4]} 42. Rb6 {[%clk 0:00:06.1]} 42... Rc7 {[%clk 0:00:08.2]} 43. b4
{[%clk 0:00:05.5]} 43... Kb3 {[%clk 0:00:06.1]} 44. b5 {[%clk 0:00:05.1]} 44...
a5 {[%clk 0:00:06.3]} 45. c5 {[%clk 0:00:05.2]} 45... Be4 {[%clk 0:00:05.6]} 46.
Ra6 {[%clk 0:00:04.3]} 46... a4 {[%clk 0:00:04.8]} 47. c6 {[%clk 0:00:04.4]}
47... a3 {[%clk 0:00:04.7]} 48. b6 {[%clk 0:00:04.5]} 48... Rxc6 {[%clk
0:00:03.7]} 49. b7 {[%clk 0:00:05.1]} 49... Rc1+ {[%clk 0:00:02.8]} 50. Kf2
{[%clk 0:00:05.1]} 50... Bxb7 {[%clk 0:00:02.5]} 51. Rab6+ {[%clk 0:00:05.4]}
51... Kc3 {[%clk 0:00:01.4]} 52. Rxb7 {[%clk 0:00:05.2]} 52... a2 {[%clk
0:00:02.2]} 53. Ra6 {[%clk 0:00:04.5]} 53... a1=Q {[%clk 0:00:02.3]} 54. Rxa1
{[%clk 0:00:05.1]} 54... Rb1 {[%clk 0:00:03.2]} 55. Raxb1 {[%clk 0:00:04.6]} 1-0

[Event "Early-Titled-Tuesday-Blitz-May-28-2024"]
[Site "Chess.com"]
[Date "2024.05.28"]
[Round "5"]
[White "NikFil2013"]
[Black "KingCrusher275"]
[Result "1-0"]
[WhiteElo "2468"]
[BlackElo "2587"]
[TimeControl "180+1"]
[EndTime "8:57:16 PDT"]
[Termination "NikFil2013 won by checkmate"]

1. d4 {[%clk 0:02:57.1]} 1... Nf6 {[%clk 0:02:59.8]} 2. c4 {[%clk 0:02:56.9]}
2... e6 {[%clk 0:03:00.2]} 3. Nc3 {[%clk 0:02:56.4]} 3... Bb4 {[%clk 0:03:00.4]}
4. e3 {[%clk 0:02:56.1]} 4... O-O {[%clk 0:03:00.5]} 5. Bd3 {[%clk 0:02:55.3]}
5... d5 {[%clk 0:03:00.8]} 6. Nf3 {[%clk 0:02:55.4]} 6... c5 {[%clk 0:03:01.1]}
7. O-O {[%clk 0:02:55.7]} 7... Nc6 {[%clk 0:02:58.1]} 8. a3 {[%clk 0:02:56.1]}
8... Bxc3 {[%clk 0:02:54.9]} 9. bxc3 {[%clk 0:02:57]} 9... dxc4 {[%clk
0:02:53.7]} 10. Bxc4 {[%clk 0:02:57.9]} 10... b6 {[%clk 0:02:53]} 11. Qe2 {[%clk
0:02:55.7]} 11... Bb7 {[%clk 0:02:52.2]} 12. a4 {[%clk 0:02:55.6]} 12... Na5
{[%clk 0:02:48.4]} 13. Bd3 {[%clk 0:02:42.4]} 13... Qc7 {[%clk 0:02:41.9]} 14.
e4 {[%clk 0:02:32.3]} 14... Nb3 {[%clk 0:02:38.8]} 15. Rb1 {[%clk 0:02:30.4]}
15... Nxc1 {[%clk 0:02:37.6]} 16. Rfxc1 {[%clk 0:02:30.1]} 16... h6 {[%clk
0:02:29.6]} 17. Rc2 {[%clk 0:01:45.3]} 17... Rac8 {[%clk 0:02:25.2]} 18. Rcb2
{[%clk 0:01:39.6]} 18... Rfd8 {[%clk 0:02:20]} 19. a5 {[%clk 0:01:37.7]} 19...
Nd7 {[%clk 0:01:42.4]} 20. Nd2 {[%clk 0:01:19.5]} 20... cxd4 {[%clk 0:01:22.6]}
21. cxd4 {[%clk 0:01:17.8]} 21... Qc3 {[%clk 0:01:23.2]} 22. a6 {[%clk
0:00:36.4]} 22... Ba8 {[%clk 0:01:17]} 23. Nf3 {[%clk 0:00:34.8]} 23... Nf6
{[%clk 0:01:05]} 24. h3 {[%clk 0:00:26.6]} 24... Qa3 {[%clk 0:00:59.5]} 25. Rb3
{[%clk 0:00:21.4]} 25... Qe7 {[%clk 0:00:55.3]} 26. R3b2 {[%clk 0:00:12.8]}
26... Rc7 {[%clk 0:00:52.7]} 27. Rc2 {[%clk 0:00:12.8]} 27... Rcd7 {[%clk
0:00:49.5]} 28. Rbc1 {[%clk 0:00:11.6]} 28... Qe8 {[%clk 0:00:33.2]} 29. Bb5
{[%clk 0:00:11]} 29... Bxe4 {[%clk 0:00:20.1]} 30. Bxd7 {[%clk 0:00:11.2]} 30...
Rxd7 {[%clk 0:00:15]} 31. Rc8 {[%clk 0:00:11]} 31... Rd8 {[%clk 0:00:15.6]} 32.
Rxd8 {[%clk 0:00:10.4]} 32... Qxd8 {[%clk 0:00:16.5]} 33. Ne5 {[%clk 0:00:09.9]}
33... Qxd4 {[%clk 0:00:15.5]} 34. Rc8+ {[%clk 0:00:09.4]} 34... Kh7 {[%clk
0:00:15.3]} 35. Nxf7 {[%clk 0:00:09.8]} 35... Qd7 {[%clk 0:00:13.5]} 36. Rh8+
{[%clk 0:00:08.4]} 36... Kg6 {[%clk 0:00:12.5]} 37. Ne5+ {[%clk 0:00:09.3]}
37... Kf5 {[%clk 0:00:13]} 38. Nxd7 {[%clk 0:00:09.9]} 38... Nxd7 {[%clk
0:00:13.2]} 39. Rd8 {[%clk 0:00:09.8]} 39... Nf6 {[%clk 0:00:13.3]} 40. g4+
{[%clk 0:00:10.1]} 40... Kf4 {[%clk 0:00:13.5]} 41. Qe3+ {[%clk 0:00:10.4]}
41... Ke5 {[%clk 0:00:14.3]} 42. Qd4+ {[%clk 0:00:10.1]} 42... Kf4 {[%clk
0:00:14.3]} 43. Qe3+ {[%clk 0:00:09.3]} 43... Ke5 {[%clk 0:00:14.8]} 44. Rd4
{[%clk 0:00:09.9]} 44... g5 {[%clk 0:00:13.3]} 45. f3 {[%clk 0:00:09.2]} 45...
Nd5 {[%clk 0:00:12.1]} 46. Qxe4+ {[%clk 0:00:09]} 46... Kf6 {[%clk 0:00:12.5]}
47. Rxd5 {[%clk 0:00:09.1]} 47... exd5 {[%clk 0:00:12.8]} 48. Qxd5 {[%clk
0:00:10]} 48... b5 {[%clk 0:00:13.2]} 49. Qxb5 {[%clk 0:00:09.7]} 49... Ke6
{[%clk 0:00:13.9]} 50. Qf5+ {[%clk 0:00:09.8]} 50... Kd6 {[%clk 0:00:14.8]} 51.
Qg6+ {[%clk 0:00:10.4]} 51... Ke5 {[%clk 0:00:14.4]} 52. Qxh6 {[%clk 0:00:10.8]}
52... Kf4 {[%clk 0:00:15.3]} 53. Qf6+ {[%clk 0:00:11.2]} 53... Kg3 {[%clk
0:00:16.2]} 54. Qe5+ {[%clk 0:00:10.7]} 54... Kh4 {[%clk 0:00:16.3]} 55. Qh8+
{[%clk 0:00:10.2]} 55... Kg3 {[%clk 0:00:16.7]} 56. f4 {[%clk 0:00:10.7]} 56...
Kf3 {[%clk 0:00:15.1]} 57. fxg5 {[%clk 0:00:09.9]} 57... Kg3 {[%clk 0:00:16]}
58. g6 {[%clk 0:00:10.4]} 58... Kf3 {[%clk 0:00:16.8]} 59. g7 {[%clk 0:00:10.9]}
59... Kg3 {[%clk 0:00:17.5]} 60. g8=Q {[%clk 0:00:11.2]} 60... Kf3 {[%clk
0:00:18.4]} 61. Qb3+ {[%clk 0:00:11.1]} 61... Kf4 {[%clk 0:00:18.6]} 62. Qd4+
{[%clk 0:00:09.6]} 62... Kg5 {[%clk 0:00:18.9]} 63. Qbd5+ {[%clk 0:00:10.2]}
63... Kh4 {[%clk 0:00:19.4]} 64. Qh8+ {[%clk 0:00:09.6]} 64... Kg3 {[%clk
0:00:19.8]} 65. Qd3+ {[%clk 0:00:09.8]} 65... Kf4 {[%clk 0:00:20.2]} 66. Qf6#
{[%clk 0:00:10.1]} 1-0

[Event "Early-Titled-Tuesday-Blitz-May-28-2024"]
[Site "Chess.com"]
[Date "2024.05.28"]
[Round "5"]
[White "wild3000"]
[Black "jaskol95"]
[Result "1-0"]
[WhiteElo "2363"]
[BlackElo "2516"]
[TimeControl "180+1"]
[EndTime "8:57:16 PDT"]
[Termination "wild3000 won by checkmate"]

1. c4 {[%clk 0:03:00]} 1... e6 {[%clk 0:03:00.9]} 2. Nc3 {[%clk 0:03:00]} 2...
d5 {[%clk 0:03:00.3]} 3. d4 {[%clk 0:02:59.9]} 3... Nf6 {[%clk 0:02:57.6]} 4.
Nf3 {[%clk 0:03:00]} 4... c6 {[%clk 0:02:58.2]} 5. e3 {[%clk 0:03:00.1]} 5...
Nbd7 {[%clk 0:02:56.1]} 6. Bd3 {[%clk 0:02:59.6]} 6... Bd6 {[%clk 0:02:56.6]} 7.
O-O {[%clk 0:02:59.3]} 7... b6 {[%clk 0:02:57.2]} 8. e4 {[%clk 0:02:59.6]} 8...
dxe4 {[%clk 0:02:56.8]} 9. Nxe4 {[%clk 0:02:59.7]} 9... Nxe4 {[%clk 0:02:57.3]}
10. Bxe4 {[%clk 0:03:00.6]} 10... Bb7 {[%clk 0:02:57.7]} 11. d5 {[%clk
0:02:57.8]} 11... Nc5 {[%clk 0:02:41.5]} 12. dxc6 {[%clk 0:02:55.1]} 12... Nxe4
{[%clk 0:02:33.2]} 13. cxb7 {[%clk 0:02:54.8]} 13... Rb8 {[%clk 0:02:33.9]} 14.
Qa4+ {[%clk 0:02:44.7]} 14... Qd7 {[%clk 0:02:25.9]} 15. Qxa7 {[%clk 0:02:42.1]}
15... Rxb7 {[%clk 0:01:46.4]} 16. Qa8+ {[%clk 0:02:34.7]} 16... Bb8 {[%clk
0:01:47]} 17. Ne5 {[%clk 0:01:59.7]} 17... Qc7 {[%clk 0:01:15.4]} 18. Bf4 {[%clk
0:01:39.3]} 18... g5 {[%clk 0:01:15.7]} 19. Qa4+ {[%clk 0:01:30.2]} 19... Kf8
{[%clk 0:01:05.2]} 20. Ng6+ {[%clk 0:01:22]} 20... hxg6 {[%clk 0:01:01]} 21.
Bxc7 {[%clk 0:01:19.9]} 21... Bxc7 {[%clk 0:01:00.5]} 22. Qa8+ {[%clk
0:01:18.6]} 22... Kg7 {[%clk 0:01:00.9]} 23. Qxb7 {[%clk 0:00:46.9]} 23... Bxh2+
{[%clk 0:01:00.4]} 24. Kh1 {[%clk 0:00:47]} 24... Nc5 {[%clk 0:00:24.4]} 25.
Qxb6 {[%clk 0:00:34.3]} 25... Bc7+ {[%clk 0:00:23.3]} 26. Kg1 {[%clk 0:00:34.6]}
26... Bxb6 {[%clk 0:00:23.7]} 27. b4 {[%clk 0:00:34.8]} 27... Ne4 {[%clk
0:00:20.1]} 28. c5 {[%clk 0:00:34.8]} 28... Bc7 {[%clk 0:00:20.8]} 29. g3 {[%clk
0:00:33.5]} 29... g4 {[%clk 0:00:20.5]} 30. Rfd1 {[%clk 0:00:31]} 30... Ng5
{[%clk 0:00:19.6]} 31. Kf1 {[%clk 0:00:25.7]} 31... Be5 {[%clk 0:00:17]} 32.
Rab1 {[%clk 0:00:25.4]} 32... Nf3 {[%clk 0:00:16.2]} 33. Ke2 {[%clk 0:00:23.6]}
33... Nd4+ {[%clk 0:00:16.2]} 34. Kd3 {[%clk 0:00:21]} 34... Nb5 {[%clk
0:00:16.7]} 35. a4 {[%clk 0:00:18.7]} 35... Nc3 {[%clk 0:00:17.2]} 36. Kc4
{[%clk 0:00:17.4]} 36... Nxd1 {[%clk 0:00:15.7]} 37. Rxd1 {[%clk 0:00:17.4]}
37... Rh2 {[%clk 0:00:15.7]} 38. Rf1 {[%clk 0:00:16.4]} 38... f5 {[%clk
0:00:11]} 39. a5 {[%clk 0:00:16.4]} 39... f4 {[%clk 0:00:10.3]} 40. gxf4 {[%clk
0:00:14.7]} 40... Bxf4 {[%clk 0:00:11.2]} 41. a6 {[%clk 0:00:15]} 41... Bb8
{[%clk 0:00:11.6]} 42. b5 {[%clk 0:00:15.2]} 42... Rh4 {[%clk 0:00:11]} 43. Kb3
{[%clk 0:00:12.1]} 43... Rh3+ {[%clk 0:00:11.3]} 44. Ka4 {[%clk 0:00:11.5]}
44... Rh5 {[%clk 0:00:11.8]} 45. Kb4 {[%clk 0:00:10.5]} 45... Rh4 {[%clk
0:00:11.8]} 46. b6 {[%clk 0:00:09.5]} 46... g3+ {[%clk 0:00:11.6]} 47. Kb5
{[%clk 0:00:09.1]} 47... g2 {[%clk 0:00:11]} 48. Rg1 {[%clk 0:00:09.2]} 48...
Rg4 {[%clk 0:00:11.7]} 49. a7 {[%clk 0:00:08.6]} 49... Bh2 {[%clk 0:00:12.5]}
50. Rxg2 {[%clk 0:00:08.6]} 50... Bg1 {[%clk 0:00:13.1]} 51. Rxg4 {[%clk
0:00:08.1]} 51... Bxf2 {[%clk 0:00:13.8]} 52. Re4 {[%clk 0:00:08.1]} 52... Kf6
{[%clk 0:00:14.4]} 53. Re2 {[%clk 0:00:08.1]} 53... Bg3 {[%clk 0:00:14.7]} 54.
a8=Q {[%clk 0:00:08.2]} 54... Kf5 {[%clk 0:00:15.3]} 55. Qf3+ {[%clk 0:00:08.1]}
55... Bf4 {[%clk 0:00:15.4]} 56. Qe4+ {[%clk 0:00:08.2]} 56... Kg5 {[%clk
0:00:15.4]} 57. Qxe6 {[%clk 0:00:08.4]} 57... Kh5 {[%clk 0:00:15.2]} 58. Rg2
{[%clk 0:00:08.2]} 58... g5 {[%clk 0:00:15.8]} 59. Qg4+ {[%clk 0:00:08]} 59...
Kg6 {[%clk 0:00:15.9]} 60. Qxf4 {[%clk 0:00:08.3]} 60... Kh7 {[%clk 0:00:15.3]}
61. Rxg5 {[%clk 0:00:08.1]} 61... Kh8 {[%clk 0:00:16.2]} 62. Qh4# {[%clk
0:00:08.4]} 1-0

[Event "Early-Titled-Tuesday-Blitz-May-28-2024"]
[Site "Chess.com"]
[Date "2024.05.28"]
[Round "5"]
[White "bascheyaro"]
[Black "Jospem"]
[Result "0-1"]
[WhiteElo "2817"]
[BlackElo "3034"]
[TimeControl "180+1"]
[EndTime "8:57:18 PDT"]
[Termination "Jospem won by resignation"]

1. d4 {[%clk 0:03:00.9]} 1... Nf6 {[%clk 0:02:59.3]} 2. Nf3 {[%clk 0:03:00.9]}
2... e6 {[%clk 0:02:59.5]} 3. Bg5 {[%clk 0:03:00.8]} 3... Be7 {[%clk 0:02:57.6]}
4. e3 {[%clk 0:03:00.8]} 4... b6 {[%clk 0:02:57.7]} 5. c4 {[%clk 0:03:00.7]}
5... Bb7 {[%clk 0:02:58.1]} 6. Bd3 {[%clk 0:03:00.3]} 6... d6 {[%clk 0:02:58.8]}
7. Nc3 {[%clk 0:02:58.8]} 7... Nbd7 {[%clk 0:02:59.4]} 8. O-O {[%clk 0:02:58.5]}
8... h6 {[%clk 0:02:59.7]} 9. Bh4 {[%clk 0:02:58.5]} 9... g5 {[%clk 0:02:57.3]}
10. Bg3 {[%clk 0:02:58.6]} 10... Rg8 {[%clk 0:02:58.2]} 11. e4 {[%clk
0:02:55.9]} 11... h5 {[%clk 0:02:58.4]} 12. h3 {[%clk 0:02:56]} 12... g4 {[%clk
0:02:58.2]} 13. hxg4 {[%clk 0:02:56.4]} 13... Nxg4 {[%clk 0:02:56.9]} 14. Bf4
{[%clk 0:02:27.7]} 14... h4 {[%clk 0:02:39.4]} 15. Nh2 {[%clk 0:02:17.4]} 15...
Ngf6 {[%clk 0:02:17.9]} 16. Qf3 {[%clk 0:02:13.5]} 16... Nf8 {[%clk 0:01:50]}
17. Rad1 {[%clk 0:02:08.1]} 17... Ng6 {[%clk 0:01:50.1]} 18. Bg5 {[%clk
0:02:05.6]} 18... Nh7 {[%clk 0:01:42.2]} 19. Be3 {[%clk 0:01:54]} 19... Ng5
{[%clk 0:01:28.7]} 20. Bxg5 {[%clk 0:01:53.6]} 20... Bxg5 {[%clk 0:01:27.1]} 21.
Ne2 {[%clk 0:01:53.1]} 21... Qf6 {[%clk 0:01:21.2]} 22. b3 {[%clk 0:01:40.7]}
22... O-O-O {[%clk 0:01:18.8]} 23. Qxf6 {[%clk 0:01:32.2]} 23... Bxf6 {[%clk
0:01:19.7]} 24. f4 {[%clk 0:01:26.2]} 24... Ne7 {[%clk 0:01:17.4]} 25. Nf3
{[%clk 0:01:23.2]} 25... Rg4 {[%clk 0:01:12.2]} 26. Kf2 {[%clk 0:01:18.6]} 26...
Rdg8 {[%clk 0:01:11.5]} 27. Rg1 {[%clk 0:01:18.9]} 27... Bh8 {[%clk 0:01:01.8]}
28. d5 {[%clk 0:01:15.9]} 28... f5 {[%clk 0:00:56]} 29. exf5 {[%clk 0:01:06.8]}
29... exd5 {[%clk 0:00:56.1]} 30. Ng5 {[%clk 0:01:07]} 30... dxc4 {[%clk
0:00:44]} 31. Bxc4 {[%clk 0:01:06.5]} 31... d5 {[%clk 0:00:44.5]} 32. Bd3 {[%clk
0:01:06.7]} 32... Bf6 {[%clk 0:00:28.6]} 33. Kf3 {[%clk 0:01:05.1]} 33... R4xg5
{[%clk 0:00:29.1]} 34. fxg5 {[%clk 0:01:05.3]} 34... Rxg5 {[%clk 0:00:29.4]} 35.
g4 {[%clk 0:01:03.6]} 35... Nc6 {[%clk 0:00:24.1]} 36. Nf4 {[%clk 0:00:56]}
36... Ne5+ {[%clk 0:00:24.6]} 37. Ke2 {[%clk 0:00:56.3]} 37... d4 {[%clk
0:00:21.2]} 38. Ne6 {[%clk 0:00:55.3]} 38... Bf3+ {[%clk 0:00:18.9]} 39. Kd2
{[%clk 0:00:38.7]} 39... Bxd1 {[%clk 0:00:18.5]} 40. Nxg5 {[%clk 0:00:39]} 40...
Bxg5+ {[%clk 0:00:19.4]} 41. Kxd1 {[%clk 0:00:39.1]} 41... Nxd3 {[%clk
0:00:19.9]} 42. Rf1 {[%clk 0:00:29.7]} 42... Ne5 {[%clk 0:00:20.2]} 43. f6
{[%clk 0:00:29.6]} 43... Nf7 {[%clk 0:00:20.5]} 44. Ke2 {[%clk 0:00:29.1]} 44...
Kd7 {[%clk 0:00:19.2]} 45. Kd3 {[%clk 0:00:28.5]} 45... Ke6 {[%clk 0:00:19.8]}
46. Kxd4 {[%clk 0:00:28.5]} 46... Bxf6+ {[%clk 0:00:20.5]} 47. Ke4 {[%clk
0:00:28]} 47... Ng5+ {[%clk 0:00:19.5]} 48. Kf4 {[%clk 0:00:28.5]} 48... Be7
{[%clk 0:00:19.8]} 49. Re1+ {[%clk 0:00:28.4]} 49... Kf6 {[%clk 0:00:20.5]} 50.
Rf1 {[%clk 0:00:16.4]} 50... Bd6+ {[%clk 0:00:20.8]} 51. Ke3+ {[%clk 0:00:17]}
51... Kg6 {[%clk 0:00:21.5]} 52. Kf2 {[%clk 0:00:15.3]} 52... h3 {[%clk
0:00:20.1]} 53. Kg1 {[%clk 0:00:15.9]} 53... Ne4 {[%clk 0:00:17.5]} 54. Rf3
{[%clk 0:00:15.5]} 54... h2+ {[%clk 0:00:13.1]} 55. Kg2 {[%clk 0:00:15.8]} 55...
Nf6 {[%clk 0:00:10.6]} 56. b4 {[%clk 0:00:08.7]} 56... Nxg4 {[%clk 0:00:10.2]}
57. Ra3 {[%clk 0:00:09]} 57... Nf2 {[%clk 0:00:08.1]} 58. Kxf2 {[%clk
0:00:07.8]} 58... h1=Q {[%clk 0:00:08.4]} 59. Rxa7 {[%clk 0:00:08.7]} 59... Qh2+
{[%clk 0:00:08.7]} 0-1